lending/lending_fUSD_20250218
["ID","MTS","AMOUNT","RATE_DAILY","PERIOD"]
[353478016,1739873442955,-500.0,0.00013698,2]
[353478017,1739873442965,-500.0,0.00013698,2]
[353478018,1739873442974,-907.99,0.00013698,2]
[353478019,1739873442983,-500.0,0.00013698,2]
[353478020,1739873442994,-500.0,0.00013698,2]
[353478021,1739873443003,-500.0,0.00013698,2]
[353478022,1739873443012,-500.0,0.00013698,2]
[353478023,1739873443022,-500.0,0.00013698,2]
[353478024,1739873443032,-636.65,0.00013698,2]
[353478025,1739873443041,-868.73,0.00013698,2]
[353478026,1739873443050,-716.42,0.00013698,2]
[353478027,1739873443060,-704.69,0.00013698,2]
[353478028,1739873443069,-500.0,0.00013698,2]
[353478031,1739873443079,-646.87,0.00013698,2]
[353478033,1739873443088,-500.0,0.00013698,2]
[353478035,1739873443098,-511.08,0.00013698,2]
[353478036,1739873443107,-500.0,0.00013698,2]
[353478037,1739873443116,-500.0,0.00013698,2]
[353478038,1739873443125,-500.0,0.00013698,2]
[353478039,1739873443134,-1552.55,0.00013698,2]
[353478040,1739873443144,-500.0,0.00013698,2]
[353478041,1739873443154,-500.0,0.00013698,2]
[353478042,1739873443163,-500.0,0.00013698,2]
[353478043,1739873443173,-500.0,0.00013698,2]
[353478044,1739873443183,-521.51,0.00013698,2]
[353478045,1739873443192,-1093.74,0.00013698,2]
[353478046,1739873443202,-500.0,0.00013698,2]
[353478047,1739873443211,-500.0,0.00013698,2]
[353478048,1739873443221,-500.0,0.00013698,2]
[353478050,1739873443231,-500.0,0.00013698,2]
[353478052,1739873443240,-1491.33,0.00013698,2]
[353478053,1739873443249,-508.22748873,0.00013698,2]
[353478055,1739873443259,-1078.03,0.00013698,2]
[353478056,1739873443268,-519.89,0.00013698,2]
[353478057,1739873443277,-500.0,0.00013698,2]
[353478059,1739873443289,-504.32712868,0.00013698,2]
[353478061,1739873443299,-500.0,0.00013698,2]
[353478063,1739873443307,-500.0,0.00013698,2]
[353478064,1739873443316,-500.0,0.00013698,2]
[353478065,1739873443327,-500.0,0.00013698,2]
[353478066,1739873443337,-500.0,0.00013698,2]
[353478067,1739873443347,-629.14,0.00013698,2]
[353478068,1739873443356,-500.0,0.00013698,2]
[353478069,1739873443366,-500.0,0.00013698,2]
[353478070,1739873443376,-500.0,0.00013698,2]
[353478071,1739873443386,-2499.55,0.00013698,2]
[353478072,1739873443396,-648.99,0.00013698,2]
[353478073,1739873443406,-500.0,0.00013698,2]
[353478074,1739873443415,-500.0,0.00013698,2]
[353478075,1739873443425,-500.0,0.00013698,2]
[353478076,1739873443434,-500.0,0.00013698,2]
[353478077,1739873443444,-512.18375926,0.00013698,2]
[353478078,1739873443454,-582.06,0.00013698,2]
[353478079,1739873443464,-572.48,0.00013698,2]
[353478080,1739873443475,-500.0,0.00013698,2]
[353478081,1739873443485,-500.0,0.00013698,2]
[353478082,1739873443495,-850.16,0.00013698,2]
[353478083,1739873443505,-500.0,0.00013698,2]
[353478084,1739873443514,-500.0,0.00013698,2]
[353478085,1739873443523,-500.0,0.00013698,2]
[353478086,1739873443533,-500.0,0.00013698,2]
[353478087,1739873443542,-756.47,0.00013698,2]
[353478088,1739873443551,-500.0,0.00013698,2]
[353478089,1739873443562,-508.7,0.00013698,2]
[353478090,1739873443571,-500.0,0.00013698,2]
[353478091,1739873443580,-500.0,0.00013698,2]
[353478092,1739873443590,-780.83,0.00013698,2]
[353478093,1739873443599,-500.0,0.00013698,2]
[353478094,1739873443609,-541.49,0.00013698,2]
[353478095,1739873443625,-500.0,0.00013698,2]
[353478096,1739873443637,-500.0,0.00013698,2]
[353478097,1739873443647,-500.0,0.00013698,2]
[353478098,1739873443656,-500.0,0.00013698,2]
[353478099,1739873443666,-1538.16,0.00013698,2]
[353478100,1739873443675,-500.0,0.00013698,2]
[353478101,1739873443685,-2283.38,0.00013698,2]
[353478102,1739873443694,-500.0,0.00013698,2]
[353478103,1739873443704,-150.00527198,0.00013698,2]
[353478104,1739873443714,-500.0,0.00013698,2]
[353478105,1739873443725,-500.0,0.00013698,2]
[353478106,1739873443734,-500.0,0.00013698,2]
[353478107,1739873443744,-736.57,0.00013698,2]
[353478108,1739873443753,-500.0,0.00013698,2]
[353478109,1739873443763,-568.23,0.00013698,2]
[353478110,1739873443772,-500.0,0.00013698,2]
[353478111,1739873443781,-500.0,0.00013698,2]
[353478112,1739873443790,-500.0,0.00013698,2]
[353478113,1739873443800,-500.0,0.00013698,2]
[353478114,1739873443809,-500.0,0.00013698,2]
[353478115,1739873443819,-500.0,0.00013698,2]
[353478116,1739873443828,-500.0,0.00013698,2]
[353478117,1739873443837,-500.0,0.00013698,2]
[353478118,1739873443847,-695.51,0.00013698,2]
[353478119,1739873443855,-500.60832825,0.00013698,2]
[353478120,1739873443865,-603.74,0.00013698,2]
[353478121,1739873443874,-810.34,0.00013698,2]
[353478122,1739873443883,-500.0,0.00013698,2]
[353478123,1739873443892,-1025.2,0.00013698,2]
[353478124,1739873443901,-500.0,0.00013698,2]
[353478125,1739873443911,-410.85639141,0.00013698,2]
[353478126,1739873443920,-500.0,0.00013698,2]
[353478127,1739873443929,-500.0,0.00013698,2]
[353478128,1739873443938,-500.0,0.00013698,2]
[353478129,1739873443948,-532.35,0.00013698,2]
[353478130,1739873443957,-545.49,0.00013698,2]
[353478131,1739873443967,-1498.45,0.00013698,2]
[353478132,1739873443977,-500.0,0.00013698,2]
[353478133,1739873443987,-500.0,0.00013698,2]
[353478134,1739873443996,-500.0,0.00013698,2]
[353478135,1739873444006,-500.0,0.00013698,2]
[353478136,1739873444015,-500.0,0.00013698,2]
[353478137,1739873444026,-500.0,0.00013698,2]
[353478138,1739873444035,-500.0,0.00013698,2]
[353478139,1739873444045,-500.0,0.00013698,2]
[353478140,1739873444054,-940.07,0.00013698,2]
[353478141,1739873444065,-500.0,0.00013698,2]
[353478142,1739873444074,-821.94,0.00013698,2]
[353478143,1739873444085,-500.0,0.00013698,2]
[353478144,1739873444095,-500.0,0.00013698,2]
[353478145,1739873444104,-500.0,0.00013698,2]
[353478146,1739873444114,-500.0,0.00013698,2]
[353478147,1739873444123,-740.75,0.00013698,2]
[353478148,1739873444133,-199.2247337,0.00013698,2]
[353478149,1739873444143,-500.0,0.00013698,2]
[353478150,1739873444153,-637.72,0.00013698,2]
[353478151,1739873444163,-500.0,0.00013698,2]
[353478152,1739873444172,-688.38,0.00013698,2]
[353478153,1739873444182,-500.0,0.00013698,2]
[353478154,1739873444191,-500.0,0.00013698,2]
[353478155,1739873444201,-541.35901773,0.00013698,2]
[353478156,1739873444210,-684.5,0.00013698,2]
[353478157,1739873444221,-500.0,0.00013698,2]
[353478158,1739873444231,-500.0,0.00013698,2]
[353478159,1739873444241,-500.0,0.00013698,2]
[353478160,1739873444250,-500.0,0.00013698,2]
[353478161,1739873444260,-964.79,0.00013698,2]
[353478162,1739873444270,-1630.57,0.00013698,2]
[353478163,1739873444279,-500.0,0.00013698,2]
[353478164,1739873444289,-216.17820799,0.00013698,2]
[353478165,1739873444350,-283.82179201,0.00013698,2]
[353478166,1739873444361,-500.0,0.00013698,2]
[353478167,1739873444371,-188.90986779,0.00013698,2]
[353478168,1739873444397,-311.09013221,0.00013698,2]
[353478169,1739873444407,-42.3127796,0.00013698,2]
[353478170,1739873444688,-457.6872204,0.00013698,2]
[353478171,1739873444698,-53.03277967,0.00013698,2]
[353478172,1739873444743,-478.27722033,0.00013698,2]
[353478173,1739873444753,-500.0,0.00013698,2]
[353478174,1739873444762,-500.0,0.00013698,2]
[353478175,1739873444772,-500.0,0.00013698,2]
[353478176,1739873444781,-500.0,0.00013698,2]
[353478177,1739873444791,-918.09,0.00013698,2]
[353478178,1739873444801,-500.0,0.00013698,2]
[353478179,1739873444811,-500.0,0.00013698,2]
[353478180,1739873444821,-500.0,0.00013698,2]
[353478181,1739873444831,-791.53,0.00013698,2]
[353478182,1739873444840,-1504.75,0.00013698,2]
[353478183,1739873444851,-500.0,0.00013698,2]
[353478184,1739873444859,-500.0,0.00013698,2]
[353478185,1739873444869,-615.09,0.00013698,2]
[353478186,1739873444879,-884.69,0.00013698,2]
[353478187,1739873444889,-500.0,0.00013698,2]
[353478188,1739873444898,-632.87,0.00013698,2]
[353478189,1739873444907,-500.0,0.00013698,2]
[353478190,1739873444918,-500.0,0.00013698,2]
[353478191,1739873444928,-1348.43,0.00013698,2]
[353478192,1739873444937,-500.0,0.00013698,2]
[353478193,1739873444947,-500.0,0.00013698,2]
[353478194,1739873444956,-500.0,0.00013698,2]
[353478195,1739873444965,-500.0,0.00013698,2]
[353478196,1739873444976,-500.0,0.00013698,2]
[353478197,1739873444985,-500.0,0.00013698,2]
[353478198,1739873444995,-500.0,0.00013698,2]
[353478199,1739873445004,-500.0,0.00013698,2]
[353478200,1739873445014,-500.0,0.00013698,2]
[353478201,1739873445024,-500.0,0.00013698,2]
[353478202,1739873445034,-492.19,0.00013698,2]
[353478203,1739873445043,-150.0,0.00013699,2]
[353478204,1739873445053,-200.0,0.00013699,2]
[353478205,1739873445062,-188.05,0.00013699,2]
[353478206,1739873445072,-438.23,0.000137,2]
[353478207,1739873445082,-500.0,0.00013711,2]
[353478208,1739873445091,-19060.88902029,0.00013712,2]
[353478209,1739873445101,-212.39405274,0.00013763,2]
[353478210,1739873445110,-3183.8373,0.00013763,2]
[353478211,1739873445120,-73.18241532,0.00013779,2]
[353478212,1739873445187,-358.41708244,0.00013779,2]
[353478213,1739873445196,-500.0,0.00013779,2]
[353478214,1739873445206,-985.98,0.00013779,2]
[353478215,1739873445215,-500.0,0.00013779,2]
[353478216,1739873445226,-500.0,0.00013779,2]
[353478217,1739873445235,-521.51,0.00013779,2]
[353478218,1739873445246,-784.72,0.00013779,2]
[353478219,1739873445256,-829.9637193,0.00013779,2]
[353478223,1739873446559,-240.06139752,0.00012253,2]
[353478224,1739873446568,-116.72860276,0.00013698,2]
[353478225,1739873446580,-539.20139724,0.00013698,2]
[353478226,1739873446589,-24.6062807,0.00013779,2]
[353478227,1739873446599,-1000.0,0.00013779,2]
[353478228,1739873446608,-516.63,0.00013779,2]
[353478229,1739873446618,-506.55104058,0.00013779,2]
[353478230,1739873446627,-1498.17,0.00013779,2]
[353478231,1739873446636,-976.61,0.00013779,2]
[353478232,1739873446645,-500.0,0.00013779,2]
[353478233,1739873446654,-500.0,0.00013779,2]
[353478234,1739873446664,-500.0,0.0001378,2]
[353478235,1739873446673,-500.0,0.0001378,2]
[353478236,1739873446682,-500.0,0.0001378,2]
[353478237,1739873446691,-500.0,0.0001378,2]
[353478238,1739873446700,-500.0,0.0001378,2]
[353478239,1739873446709,-500.0,0.0001378,2]
[353478240,1739873446718,-500.0,0.0001378,2]
[353478241,1739873446728,-514.23322089,0.0001378,2]
[353478243,1739873446738,-505.55096499,0.0001378,2]
[353478244,1739873446747,-366.960554,0.0001378,2]
[353478247,1739873446843,-133.039446,0.0001378,2]
[353478248,1739873446853,-505.90023514,0.0001378,2]
[353478249,1739873446863,-500.0,0.0001378,2]
[353478250,1739873446872,-500.0,0.0001378,2]
[353478251,1739873446882,-335.1726319,0.0001378,2]
[353478252,1739873446893,-164.8273681,0.0001378,2]
[353478253,1739873446904,-500.0,0.0001378,2]
[353478254,1739873446915,-500.0,0.0001378,2]
[353478255,1739873446924,-500.0,0.0001378,2]
[353478256,1739873446935,-220.19615087,0.0001378,2]
[353478257,1739873446945,-500.0,0.0001378,2]
[353478258,1739873446954,-500.0,0.0001378,2]
[353478259,1739873446963,-284.97648103,0.0001378,2]
[353478260,1739873446976,-215.02351897,0.0001378,2]
[353478261,1739873446986,-500.0,0.0001378,2]
[353478262,1739873446995,-500.0,0.0001378,2]
[353478263,1739873447005,-500.0,0.0001378,2]
[353478264,1739873447014,-509.68879069,0.0001378,2]
[353478265,1739873447023,-500.0,0.0001378,2]
[353478266,1739873447032,-82.71590615,0.0001378,2]
[353478267,1739873447044,-417.28409385,0.0001378,2]
[353478268,1739873447054,-500.0,0.0001378,2]
[353478269,1739873447063,-500.0,0.0001378,2]
[353478270,1739873447072,-500.0,0.0001378,2]
[353478271,1739873447081,-500.0,0.0001378,2]
[353478272,1739873447091,-500.0,0.0001378,2]
[353478273,1739873447100,-500.0,0.0001378,2]
[353478274,1739873447109,-535.54566244,0.0001378,2]
[353478275,1739873447118,-500.0,0.0001378,2]
[353478276,1739873447128,-500.0,0.0001378,2]
[353478277,1739873447137,-500.0,0.0001378,2]
[353478278,1739873447146,-500.0,0.0001378,2]
[353478279,1739873447155,-500.0,0.0001378,2]
[353478280,1739873447164,-500.0,0.0001378,2]
[353478281,1739873447174,-500.0,0.0001378,2]
[353478282,1739873447184,-500.0,0.0001378,2]
[353478283,1739873447194,-500.0,0.0001378,2]
[353478284,1739873447204,-500.0,0.0001378,2]
[353478285,1739873447214,-500.0,0.0001378,2]
[353478286,1739873447225,-513.12167219,0.0001378,2]
[353478287,1739873447238,-500.0,0.0001378,2]
[353478288,1739873447249,-511.37097613,0.0001378,2]
[353478289,1739873447259,-500.0,0.0001378,2]
[353478290,1739873447269,-806.72,0.0001378,2]
[353478291,1739873447279,-500.0,0.0001378,2]
[353478292,1739873447290,-500.0,0.0001378,2]
[353478293,1739873447303,-500.0,0.0001378,2]
[353478294,1739873447313,-500.0,0.0001378,2]
[353478295,1739873447323,-500.0,0.0001378,2]
[353478296,1739873447334,-500.0,0.0001378,2]
[353478297,1739873447343,-500.0,0.0001378,2]
[353478298,1739873447353,-500.0,0.0001378,2]
[353478299,1739873447362,-500.0,0.0001378,2]
[353478300,1739873447375,-500.0,0.0001378,2]
[353478301,1739873447384,-500.0,0.0001378,2]
[353478302,1739873447393,-500.0,0.0001378,7]
[353478303,1739873447403,-500.0,0.0001378,2]
[353478304,1739873447412,-500.0,0.0001378,2]
[353478305,1739873447421,-511.49056304,0.0001378,2]
[353478306,1739873447430,-500.0,0.0001378,2]
[353478307,1739873447439,-500.0,0.0001378,2]
[353478308,1739873447448,-500.0,0.0001378,2]
[353478309,1739873447458,-500.0,0.0001378,2]
[353478310,1739873447467,-500.0,0.0001378,2]
[353478311,1739873447477,-500.0,0.0001378,2]
[353478312,1739873447487,-500.0,0.0001378,2]
[353478313,1739873447497,-500.0,0.0001378,2]
[353478314,1739873447506,-500.0,0.0001378,2]
[353478315,1739873447515,-500.0,0.0001378,2]
[353478316,1739873447524,-500.0,0.0001378,2]
[353478317,1739873447534,-358.0399701,0.0001378,2]
[353478318,1739873447543,-500.0,0.0001378,2]
[353478319,1739873447552,-500.0,0.0001378,2]
[353478320,1739873447562,-500.0,0.0001378,2]
[353478321,1739873447571,-500.0,0.0001378,2]
[353478322,1739873447580,-500.0,0.0001378,2]
[353478323,1739873447589,-500.0,0.0001378,2]
[353478324,1739873447598,-500.0,0.0001378,2]
[353478325,1739873447608,-500.0,0.0001378,2]
[353478326,1739873447618,-500.0,0.0001378,2]
[353478327,1739873447627,-500.0,0.0001378,2]
[353478328,1739873447636,-500.0,0.0001378,2]
[353478329,1739873447645,-500.0,0.0001378,2]
[353478330,1739873447655,-500.0,0.0001378,2]
[353478331,1739873447665,-500.0,0.0001378,2]
[353478332,1739873447676,-500.0,0.0001378,2]
[353478333,1739873447686,-515.82597389,0.0001378,2]
[353478334,1739873447695,-500.0,0.0001378,2]
[353478335,1739873447704,-500.0,0.0001378,2]
[353478336,1739873447715,-500.0,0.0001378,2]
[353478337,1739873447725,-500.0,0.0001378,2]
[353478338,1739873447734,-500.0,0.0001378,2]
[353478339,1739873447744,-500.0,0.0001378,2]
[353478340,1739873447754,-500.0,0.0001378,2]
[353478341,1739873447763,-500.0,0.0001378,2]
[353478342,1739873447773,-500.0,0.0001378,2]
[353478343,1739873447783,-500.0,0.0001378,2]
[353478344,1739873447792,-500.0,0.0001378,2]
[353478345,1739873447803,-500.0,0.0001378,2]
[353478346,1739873447812,-500.0,0.0001378,2]
[353478347,1739873447822,-500.0,0.0001378,2]
[353478348,1739873447833,-500.0,0.0001378,2]
[353478349,1739873447843,-500.0,0.0001378,2]
[353478350,1739873447853,-500.0,0.0001378,2]
[353478351,1739873447862,-500.0,0.0001378,2]
[353478352,1739873447872,-500.0,0.0001378,2]
[353478353,1739873447882,-500.0,0.0001378,2]
[353478354,1739873447892,-500.0,0.0001378,2]
[353478355,1739873447902,-500.0,0.0001378,2]
[353478356,1739873447911,-500.0,0.0001378,2]
[353478357,1739873447920,-500.0,0.0001378,2]
[353478358,1739873447930,-500.0,0.0001378,2]
[353478359,1739873447939,-500.0,0.0001378,2]
[353478360,1739873447949,-500.0,0.0001378,2]
[353478361,1739873447958,-500.0,0.0001378,2]
[353478362,1739873447968,-500.0,0.0001378,2]
[353478363,1739873447978,-500.0,0.0001378,2]
[353478364,1739873447991,-500.0,0.0001378,2]
[353478365,1739873448001,-500.0,0.0001378,2]
[353478366,1739873448010,-500.0,0.0001378,2]
[353478367,1739873448021,-500.0,0.0001378,2]
[353478368,1739873448031,-500.0,0.0001378,2]
[353478369,1739873448042,-500.0,0.0001378,2]
[353478370,1739873448052,-500.0,0.0001378,2]
[353478371,1739873448062,-500.0,0.0001378,2]
[353478372,1739873448073,-500.0,0.0001378,2]
[353478373,1739873448083,-500.0,0.0001378,2]
[353478374,1739873448094,-500.0,0.0001378,2]
[353478375,1739873448105,-639.55,0.0001378,2]
[353478376,1739873448115,-500.0,0.0001378,2]
[353478377,1739873448125,-500.0,0.0001378,2]
[353478378,1739873448136,-500.0,0.0001378,2]
[353478379,1739873448147,-500.0,0.0001378,2]
[353478380,1739873448157,-500.0,0.0001378,2]
[353478381,1739873448168,-500.0,0.0001378,2]
[353478382,1739873448179,-500.0,0.0001378,2]
[353478383,1739873448191,-500.0,0.0001378,2]
[353478384,1739873448202,-500.0,0.0001378,2]
[353478385,1739873448214,-500.0,0.0001378,2]
[353478386,1739873448227,-500.0,0.0001378,2]
[353478387,1739873448238,-500.0,0.0001378,2]
[353478388,1739873448249,-500.0,0.0001378,2]
[353478389,1739873448260,-500.0,0.0001378,2]
[353478390,1739873448271,-500.0,0.0001378,2]
[353478391,1739873448281,-500.0,0.0001378,2]
[353478392,1739873448298,-500.0,0.0001378,2]
[353478393,1739873448309,-500.0,0.0001378,2]
[353478394,1739873448320,-500.0,0.0001378,2]
[353478395,1739873448331,-500.0,0.0001378,2]
[353478396,1739873448343,-500.0,0.0001378,2]
[353478397,1739873448353,-500.0,0.0001378,2]
[353478398,1739873448367,-500.0,0.0001378,2]
[353478399,1739873448385,-500.0,0.0001378,2]
[353478400,1739873448398,-500.0,0.0001378,2]
[353478401,1739873448409,-500.4695963,0.0001378,2]
[353478402,1739873448420,-500.0,0.0001378,2]
[353478403,1739873448433,-500.0,0.0001378,2]
[353478404,1739873448444,-500.0,0.0001378,2]
[353478405,1739873448455,-500.0,0.0001378,2]
[353478406,1739873448467,-500.0,0.0001378,2]
[353478407,1739873448479,-500.0,0.0001378,2]
[353478408,1739873448490,-500.0,0.0001378,2]
[353478409,1739873448502,-500.0,0.0001378,2]
[353478410,1739873448512,-500.0,0.0001378,2]
[353478411,1739873448522,-500.0,0.0001378,2]
[353478412,1739873448532,-500.0,0.0001378,2]
[353478413,1739873448542,-500.0,0.0001378,2]
[353478414,1739873448552,-625.4,0.0001378,2]
[353478415,1739873448561,-500.0,0.0001378,2]
[353478416,1739873448571,-500.0,0.0001378,2]
[353478417,1739873448582,-500.0,0.0001378,2]
[353478418,1739873448594,-500.0,0.0001378,2]
[353478419,1739873448606,-500.0,0.0001378,2]
[353478420,1739873448616,-500.0,0.0001378,2]
[353478421,1739873448627,-500.0,0.0001378,2]
[353478422,1739873448639,-500.0,0.0001378,2]
[353478423,1739873448650,-501.51494536,0.0001378,2]
[353478424,1739873448661,-504.16575771,0.0001378,2]
[353478425,1739873448671,-500.0,0.0001378,2]
[353478426,1739873448682,-500.0,0.0001378,2]
[353478427,1739873448692,-511.13,0.0001378,2]
[353478428,1739873448703,-500.0,0.0001378,2]
[353478429,1739873448713,-500.0,0.0001378,2]
[353478430,1739873448723,-500.0,0.0001378,2]
[353478431,1739873448733,-500.0,0.0001378,2]
[353478432,1739873448744,-500.0,0.0001378,2]
[353478433,1739873448753,-500.0,0.0001378,2]
[353478434,1739873448763,-500.0,0.0001378,2]
[353478435,1739873448773,-1050.53,0.0001378,2]
[353478436,1739873448783,-500.0,0.0001378,2]
[353478437,1739873448793,-500.0,0.0001378,2]
[353478438,1739873448802,-500.0,0.0001378,2]
[353478439,1739873448812,-500.0,0.0001378,2]
[353478440,1739873448821,-500.0,0.0001378,2]
[353478441,1739873448831,-500.0,0.0001378,2]
[353478442,1739873448840,-500.0,0.0001378,2]
[353478443,1739873448850,-500.0,0.0001378,2]
[353478444,1739873448860,-500.0,0.0001378,2]
[353478445,1739873448871,-500.0,0.0001378,2]
[353478446,1739873448881,-614.757635,0.0001378,2]
[353478447,1739873448892,-500.0,0.0001378,2]
[353478448,1739873448902,-500.0,0.0001378,2]
[353478449,1739873448913,-500.0,0.0001378,2]
[353478450,1739873448923,-500.0,0.0001378,2]
[353478451,1739873448933,-500.0,0.0001378,2]
[353478452,1739873448943,-500.0,0.0001378,2]
[353478453,1739873448953,-500.0,0.0001378,2]
[353478454,1739873448963,-500.0,0.0001378,2]
[353478455,1739873448974,-500.0,0.0001378,2]
[353478456,1739873448983,-368.98385351,0.0001378,2]
[353478457,1739873449005,-131.01614649,0.0001378,2]
[353478458,1739873449015,-471.78385351,0.0001378,2]
[353478459,1739873449035,-28.21614649,0.0001378,2]
[353478460,1739873449044,-500.0,0.0001378,2]
[353478461,1739873449055,-314.35677449,0.0001378,2]
[353478462,1739873449068,-185.64322551,0.0001378,2]
[353478463,1739873449079,-150.75863627,0.0001378,2]
[353478464,1739873449091,-349.24136373,0.0001378,2]
[353478465,1739873449101,-500.0,0.0001378,2]
[353478466,1739873449112,-500.0,0.0001378,2]
[353478467,1739873449123,-500.0,0.0001378,2]
[353478468,1739873449134,-500.0,0.0001378,2]
[353478469,1739873449144,-500.0,0.0001378,2]
[353478470,1739873449155,-44.25688573,0.0001378,2]
[353478471,1739873449168,-455.74311427,0.0001378,2]
[353478472,1739873449179,-500.0,0.0001378,2]
[353478473,1739873449189,-500.0,0.0001378,2]
[353478474,1739873449199,-814.93,0.0001378,2]
[353478475,1739873449210,-500.0,0.0001378,2]
[353478476,1739873449221,-500.0,0.0001378,2]
[353478477,1739873449231,-500.0,0.0001378,2]
[353478478,1739873449242,-500.0,0.0001378,2]
[353478479,1739873449259,-500.0,0.0001378,2]
[353478480,1739873449274,-500.0,0.0001378,2]
[353478481,1739873449286,-500.0,0.0001378,2]
[353478482,1739873449298,-500.0,0.0001378,2]
[353478483,1739873449307,-500.0,0.0001378,2]
[353478484,1739873449317,-17.7329213,0.0001378,2]
[353478486,1739874229132,455.54,8.767e-05,2]
[353478487,1739874344677,597.830781,0.00020156,120]
[353478509,1739874631578,-150.0,9.999e-05,2]
[353478510,1739874631587,-500.0,9.999e-05,2]
[353478511,1739874631597,-265.28902834,9.999e-05,2]
[353478512,1739874631606,-168084.71102166,0.0001,2]
[353478513,1739874631635,-385.1781132,0.0001,2]
[353478514,1739874631647,-1865.69249295,0.0001,2]
[353478515,1739874631695,-4858.38509949,0.0001,2]
[353478516,1739874631707,-812.11033452,0.0001,2]
[353478517,1739874631718,-41938.24523401,0.0001,2]
[353478518,1739874631806,-606.55715538,0.0001,2]
[353478519,1739874631818,-18928.81618522,0.0001,2]
[353478520,1739874631829,-1273.3784205,0.0001,2]
[353478521,1739874631840,-11437.23281721,0.0001,2]
[353478522,1739874631851,-360.4367498,0.0001,2]
[353478523,1739874631863,-62232.97715329,0.0001,2]
[353478524,1739874631925,-555.90330277,0.0001,2]
[353478525,1739874631936,-450.653,0.0001,2]
[353479079,1739874637444,-1109.76612253,0.0001,2]
[353479083,1739874637456,-1004.48226134,0.0001,2]
[353479092,1739874637503,-1827.1742559,0.0001,2]
[353479094,1739874637515,-693.43710831,0.0001,2]
[353479095,1739874637526,-1454.24614478,0.0001,2]
[353479096,1739874637560,-902.48955533,0.0001,2]
[353479097,1739874637572,-735.15365519,0.0001,2]
[353479098,1739874637583,-1955.57344378,0.0001,2]
[353479108,1739874637674,-1863.29899157,0.0001,2]
[353479110,1739874637685,-14237.70314426,0.0001,2]
[353479112,1739874637698,-3787.70040471,0.0001,2]
[353479117,1739874637734,-500.0,0.0001,2]
[353479119,1739874637745,-510.0000005,0.0001,2]
[353479293,1739874639654,-8158.28400002,0.0001,2]
[353479299,1739874639707,-27780.92590265,0.0001,2]
[353479301,1739874639718,-675.39731629,0.0001,2]
[353479304,1739874639732,-1637.193,0.0001,2]
[353479306,1739874639744,-5394.40968371,0.0001,2]
[353479308,1739874639755,-299.9249473,0.0001,2]
[353479311,1739874639773,-3474.98988707,0.0001,2]
[353479314,1739874639788,-542.98784535,0.0001,2]
[353479319,1739874639825,-121041.53899009,0.0001,2]
[353479321,1739874639836,-97670.51624349,0.0001,2]
[353479327,1739874639882,-146056.44600005,0.0001,2]
[353479340,1739874639992,-750124.39377058,0.0001,2]
[353479342,1739874640004,-120872.33906687,0.0001,2]
[353479621,1739874642567,-1912.90462321,0.0001,2]
[353479633,1739874642624,-2454.21,0.0001,2]